bitfinex/quotes_ETHUSD_20250711
["timestamp","ask_amount","ask_price","bid_price","bid_amount"]
[1752262969657,3.3999,2995.0,2994.9,10.16539638]
[1752262969858,3.3999,2995.0,2994.9,15.33939638]
[1752262970558,3.3999,2995.0,2994.9,18.67840602]
[1752262970878,3.3999,2995.0,2994.9,10.16539638]
[1752262971530,4.5099,2995.0,2994.9,15.33939638]
[1752262971730,4.5099,2995.0,2994.9,22.32539638]
[1752262971931,4.5099,2995.0,2994.9,27.49839638]
[1752262972671,6.5636,2995.0,2994.9,22.16]
[1752262972869,6.73,2995.0,2994.9,27.333]
[1752262974030,7.84,2995.0,2994.9,27.333]
[1752262974375,8.846,2995.0,2994.9,17.333]
[1752262974695,8.846,2995.0,2994.9,12.16]
[1752262975053,8.846,2995.0,2994.9,27.332]
[1752262975254,8.846,2995.0,2994.9,17.332]
[1752262975584,8.846,2995.0,2994.9,27.332]
[1752262976693,8.5141,2995.0,2994.9,27.332]
[1752262976987,6.8963,2995.0,2994.9,27.332]
[1752262977189,6.8963,2995.0,2994.9,30.67100964]
[1752262977389,6.8963,2995.0,2994.9,27.332]
[1752262979161,8.979,2995.0,2994.9,27.332]
[1752262979458,10.089,2995.0,2994.9,22.16]
[1752262979755,10.884,2995.0,2994.9,27.332]
[1752262980070,11.3199,2995.0,2994.9,27.332]
[1752262980667,10.089,2995.0,2994.9,27.332]
[1752262982691,1.6496,2994.9,2994.1,0.2494648]
[1752262982894,1.6496,2994.7,2994.2,8.0]
[1752262983093,0.64445,2994.6,2994.3,5.171]
[1752262983295,1.545,2994.4,2994.3,5.171]
[1752262983497,1.9809,2994.4,2994.3,5.171]
[1752262985297,1.5836,2994.3,2994.2,8.0]
[1752262985458,0.4359,2994.3,2994.2,8.001]
[1752262985656,0.55,2994.2,2992.7,0.17013921]
[1752262985913,0.55,2993.9,2992.8,8.001]
[1752262986061,2.0195,2993.8,2992.8,8.001]
[1752262986263,1.5836,2993.7,2992.9,10.0]
[1752262986463,1.5836,2993.5,2992.9,15.171]
[1752262986713,0.4359,2993.4,2992.9,5.171]
[1752262987008,0.4359,2993.4,2992.9,15.171]
[1752262987812,0.4359,2993.3,2993.0,10.0]
[1752262988013,1.5836,2993.5,2993.2,10.0]
[1752262988220,1.5836,2993.5,2993.3,5.171]
[1752262988683,0.4359,2993.4,2993.3,5.171]
[1752262993094,2.17625,2993.4,2993.3,5.171]
[1752262994086,1.9743,2993.4,2993.3,5.171]
[1752262997405,0.4542,2994.0,2993.4,10.0]
[1752262997604,1.5304,2993.8,2993.6,10.0]
[1752262997808,1.5304,2993.8,2993.7,5.171]
[1752262998506,1.9846,2993.8,2993.7,5.171]
[1752262998705,0.1664,2993.7,2992.9,2.0975]
[1752262998892,0.4542,2993.6,2992.9,10.0]
[1752262999102,0.4542,2993.6,2993.1,10.0]
[1752262999408,0.4542,2993.6,2993.3,10.0]
[1752262999609,0.4542,2993.6,2993.4,5.17]
[1752263000783,1.5304,2993.7,2993.5,5.17]
[1752263000977,1.5304,2993.7,2992.9,10.0]
[1752263001181,1.5304,2993.7,2993.1,10.0]
[1752263001407,0.4542,2993.6,2992.9,10.0]
[1752263001612,0.4542,2993.6,2993.1,10.0]
[1752263001903,0.4542,2993.6,2993.3,10.0]
[1752263002205,0.4542,2993.6,2993.4,5.17]
[1752263002809,0.4542,2993.5,2993.4,5.17]
[1752263003011,1.5304,2993.7,2993.4,5.17]
[1752263003309,0.4542,2994.5,2993.5,10.86030197]
[1752263003607,1.5822,2994.4,2993.7,10.0]
[1752263003806,1.5822,2994.9,2993.9,10.0]
[1752263003973,0.1664,2994.1,2994.0,16.03029639]
[1752263004181,0.1664,2994.1,2994.0,15.99689626]
[1752263005071,0.1664,2994.1,2994.0,15.6052]
[1752263008898,0.1664,2994.1,2994.0,10.4352]
[1752263009207,0.1664,2994.1,2994.0,15.6032]
[1752263010931,0.1664,2994.1,2994.0,15.6022]
[1752263011505,0.1664,2994.1,2994.0,15.167]
[1752263012074,0.1664,2994.1,2994.0,10.0]
[1752263012299,0.1664,2994.1,2994.0,15.167]
[1752263013094,0.1664,2994.1,2994.0,15.6022]
[1752263014621,0.1664,2994.1,2994.0,15.167]
[1752263015136,0.1664,2994.1,2994.0,23.17]
[1752263015937,0.6206,2994.1,2994.0,23.169]
[1752263016123,2.2021,2994.1,2994.0,23.169]
[1752263016912,0.1664,2994.1,2994.0,23.169]
[1752263020334,0.6206,2994.1,2994.0,23.168]
[1752263022941,0.1664,2994.1,2994.0,23.168]
[1752263024118,0.1664,2994.1,2994.0,25.1083]
[1752263024321,1.541,2994.9,2994.1,10.0]
[1752263024629,0.1664,2994.3,2994.2,15.1973979]
[1752263024828,0.1664,2994.3,2994.2,18.93899026]
[1752263025028,0.1664,2994.3,2994.2,15.5992]
[1752263025812,0.1664,2994.3,2994.2,15.85528389]
[1752263026509,0.1664,2994.3,2994.2,19.19507415]
[1752263027344,0.1664,2994.3,2994.2,15.85528389]
[1752263028542,0.6041,2994.3,2994.2,5.163]
[1752263028762,0.82964,2994.3,2994.0,12.164]
[1752263028944,0.82964,2994.3,2994.1,5.163]
[1752263028945,2.089,2994.2,2994.1,5.163]
[1752263029111,2.089,2994.2,2994.1,15.163]
[1752263030132,2.089,2994.2,2994.1,15.164]
[1752263032719,0.4377,2994.4,2994.1,15.164]
[1752263032918,0.4377,2994.3,2994.1,15.164]
[1752263033118,0.4377,2994.2,2994.1,15.164]
[1752263034026,2.0786,2994.5,2994.1,15.164]
[1752263034350,1.6409,2994.5,2994.1,15.164]
[1752263034553,0.4377,2994.4,2994.1,15.164]
[1752263037449,0.4377,2994.3,2994.1,15.164]
[1752263038739,0.4377,2994.2,2994.1,15.164]
[1752263038919,1.6409,2994.5,2994.1,10.001]
[1752263039122,2.0787,2994.2,2994.1,0.001]
[1752263039349,2.83657,2994.2,2994.1,0.001]
[1752263039558,2.83657,2994.2,2994.1,5.162]
[1752263039754,0.1664,2994.1,2994.0,8.003]
[1752263039956,1.8074,2994.1,2994.0,13.164]
[1752263040120,2.2451,2994.1,2994.0,13.164]
[1752263040320,3.78051512,2994.1,2994.0,13.164]
[1752263040833,4.33051512,2994.1,2994.0,13.165]
[1752263041754,2.1826,2994.0,2993.2,4.161]
[1752263041950,2.1826,2994.0,2993.4,13.164]
[1752263042249,0.4377,2993.9,2993.4,13.164]
[1752263042463,0.26203,2993.8,2993.4,13.164]
[1752263042746,0.4377,2993.7,2993.4,13.164]
[1752263042949,0.26203,2993.8,2993.4,13.164]
[1752263043123,0.4377,2993.6,2993.4,13.164]
[1752263043520,0.4377,2993.5,2993.4,23.164]
[1752263044814,0.26203,2993.8,2993.4,18.003]
[1752263045020,1.6159,2993.5,2993.4,8.003]
[1752263045265,2.25896,2993.5,2993.4,13.164]
[1752263048463,0.20536,2993.5,2993.4,13.164]
[1752263048924,0.64306,2993.5,2993.4,13.164]
[1752263051476,0.20536,2993.5,2993.4,13.164]
[1752263052265,0.64306,2993.5,2993.4,13.165]
[1752263052468,1.6269,2993.6,2993.4,13.165]
[1752263052643,0.002,2994.1,2993.5,0.03340571]
[1752263052969,0.002,2994.1,2993.6,5.16]
[1752263053137,0.002,2994.1,2993.7,0.4522]
[1752263053349,0.002,2994.1,2993.8,5.16]
[1752263054466,0.002,2994.1,2993.8,5.6122]
[1752263054674,0.002,2994.1,2993.9,10.4522]
[1752263054972,0.002,2994.1,2994.0,5.16]
[1752263055837,0.1664,2994.0,2993.9,0.4522]
[1752263056034,0.1664,2994.0,2993.9,5.6112]
[1752263058892,0.1664,2994.0,2993.9,0.4522]
[1752263059093,0.1664,2994.0,2993.9,5.158]
[1752263060154,0.1664,2994.0,2993.9,5.5977]
[1752263061393,0.1664,2994.0,2993.9,5.158]
[1752263061888,0.1664,2994.0,2993.9,5.5977]
[1752263062956,0.1664,2994.0,2993.9,7.1361]
[1752263063162,0.1664,2994.0,2993.9,17.52779626]
[1752263063990,0.1664,2994.0,2993.9,20.86792118]
[1752263065094,0.002,2994.1,2994.0,14.95261336]
[1752263065385,0.002,2994.1,2994.0,20.94100962]
[1752263066497,0.002,2994.1,2994.0,15.78400962]
[1752263066663,0.002,2994.1,2994.0,7.16029626]
[1752263066870,0.1684,2994.1,2994.0,7.2083]
[1752263067798,0.1684,2994.1,2994.0,1.6126]
[1752263067996,0.1684,2994.1,2994.0,5.156]
[1752263068179,0.1684,2994.1,2994.0,13.159]
[1752263068509,0.1684,2994.1,2994.0,23.5987]
[1752263068855,0.1684,2994.1,2994.0,23.159]
[1752263069055,0.1684,2994.1,2994.0,18.003]
[1752263069655,0.1684,2994.1,2994.0,23.158]
[1752263070969,0.1684,2994.1,2994.0,18.003]
[1752263071192,0.1684,2994.1,2994.0,23.158]
[1752263074271,0.1684,2994.1,2994.0,23.5977]
[1752263075091,0.1684,2994.1,2994.0,23.158]
[1752263076663,0.1684,2994.1,2994.0,8.003]
[1752263076863,0.78574,2994.1,2994.0,8.003]
[1752263077085,2.95574,2994.1,2994.0,8.003]
[1752263077292,2.95574,2994.1,2994.0,13.157]
[1752263077598,2.95574,2994.1,2994.0,8.003]
[1752263077967,2.17,2994.0,2993.9,0.001]
[1752263078166,2.904074,2994.0,2993.9,0.001]
[1752263078578,2.904074,2994.0,2993.9,5.154]
[1752263079391,0.002,2994.1,2993.9,5.154]
[1752263079903,0.002,2994.1,2994.0,10.0]
[1752263081795,0.002,2994.1,2994.0,18.004]
[1752263083884,0.002,2994.1,2994.0,23.157]
[1752263088489,0.002,2994.1,2994.0,18.004]
[1752263088824,0.4346,2994.1,2994.0,23.156]
[1752263090685,1.9876,2994.1,2994.0,23.156]
[1752263090891,2.18636,2994.1,2994.0,8.004]
[1752263091089,2.73636,2994.1,2994.0,13.155]
[1752263096827,2.73636,2994.1,2993.9,0.001]
[1752263096828,2.2444,2994.0,2993.9,0.001]
[1752263097004,2.677,2994.0,2993.9,13.155]
[1752263097206,4.20849412,2994.0,2993.9,8.004]
[1752263098538,4.20849412,2994.0,2993.9,13.154]
[1752263098730,2.6856,2994.0,2993.9,13.154]
[1752263100297,2.1356,2994.0,2993.9,13.154]
[1752263101335,2.1356,2994.0,2993.4,0.001]
[1752263101336,2.0998,2993.9,2993.4,0.001]
[1752263101509,0.55,2993.7,2993.5,10.388]
[1752263101832,0.9826,2993.6,2993.5,8.004]
[1752263101997,0.9826,2993.6,2993.5,13.154]
[1752263102194,1.75978,2993.8,2993.5,8.004]
[1752263102430,1.5498,2994.0,2993.6,5.149]
[1752263102635,0.4326,2994.0,2993.7,5.149]
[1752263102816,0.552,2994.1,2993.8,5.149]
[1752263103004,0.21113,2994.0,2993.8,5.149]
[1752263103205,0.002,2994.1,2993.8,5.149]
[1752263103411,0.002,2994.1,2993.9,0.4432]
[1752263103621,0.002,2994.1,2994.0,5.149]
[1752263103806,0.002,2994.1,2994.0,5.5922]
[1752263104024,0.002,2994.1,2994.0,5.149]
[1752263104633,0.002,2994.1,2994.0,5.5922]
[1752263105000,0.002,2994.1,2994.0,7.2407]
[1752263106502,0.002,2994.1,2994.0,5.149]
[1752263106903,0.002,2994.1,2994.0,5.5922]
[1752263107609,0.1664,2994.0,2993.6,10.0]
[1752263107827,0.4326,2993.9,2993.7,5.148]
[1752263108036,0.22443,2994.0,2993.7,5.148]
[1752263109528,0.65703,2994.0,2993.7,5.148]
[1752263111441,0.4326,2994.0,2993.8,1.5081]
[1752263111606,0.002,2994.1,2993.9,5.148]
[1752263112509,0.002,2994.1,2994.0,0.4432]
[1752263113747,0.002,2994.1,2994.0,15.83232642]
[1752263113927,0.002,2994.1,2994.0,15.79892629]
[1752263114935,0.002,2994.1,2994.0,17.2418]
[1752263115310,0.002,2994.1,2994.0,20.58181336]
[1752263116324,0.002,2994.1,2994.0,17.2418]
[1752263116527,0.002,2994.1,2994.0,20.58181336]
[1752263116726,0.002,2994.1,2994.0,15.43481336]
[1752263116930,0.002,2994.1,2994.0,20.58081336]
[1752263117918,0.002,2994.1,2994.0,24.74181336]
[1752263118749,0.002,2994.1,2994.0,25.10592629]
[1752263120716,0.002,2994.1,2994.0,25.27232629]
[1752263120915,0.002,2994.1,2994.0,24.90821336]
[1752263123363,0.002,2994.1,2994.0,19.76221336]
[1752263123515,0.002,2994.1,2994.0,25.82032629]
[1752263126265,0.002,2994.1,2994.0,15.96532629]
[1752263126444,0.002,2994.1,2994.0,20.74521336]
[1752263126817,0.002,2994.1,2994.0,20.74421336]
[1752263127025,0.002,2994.1,2994.0,7.2679]
[1752263127324,0.1684,2994.1,2994.0,17.2679]
[1752263127968,0.1684,2994.1,2994.0,20.60791336]
[1752263128954,0.1684,2994.1,2994.0,17.2679]
[1752263129466,0.1684,2994.1,2994.0,20.60791336]
[1752263130353,0.1684,2994.1,2994.0,17.2679]
[1752263130554,0.1684,2994.1,2994.0,20.60791336]
[1752263130845,0.1684,2994.1,2994.0,17.2679]
[1752263131085,0.0184,2994.1,2994.0,17.2679]
[1752263131245,0.0184,2994.1,2994.0,12.1249]
[1752263131555,0.0184,2994.1,2994.0,16.7936]
[1752263131851,7.8419,2995.0,2994.0,13.143]
[1752263131852,0.4479,2994.3,2994.0,13.143]
[1752263132381,0.4479,2994.2,2994.1,10.0]
[1752263133674,0.4479,2994.2,2994.0,8.001]
[1752263133872,1.5778,2994.1,2994.0,8.001]
[1752263134043,2.0257,2994.1,2994.0,13.143]
[1752263135672,1.11,2994.2,2994.0,13.143]
[1752263135849,0.4479,2994.1,2994.0,13.143]
[1752263136674,1.5579,2994.1,2994.0,13.143]
[1752263137156,1.5579,2994.1,2994.0,8.001]
[1752263137341,1.5579,2994.1,2994.0,13.143]
[1752263137771,1.5579,2994.1,2994.0,8.001]
[1752263137977,1.5579,2994.1,2994.0,13.143]
[1752263138977,2.6679,2994.1,2994.0,13.143]
[1752263139855,2.6699,2994.1,2994.0,13.143]
[1752263140057,3.8106,2994.1,2994.0,13.143]
[1752263140289,4.2585,2994.1,2994.0,13.143]
[1752263140647,4.8085,2994.1,2994.0,8.001]
[1752263140870,4.8085,2994.1,2994.0,13.143]
[1752263141083,5.40035,2994.1,2994.0,13.143]
[1752263141453,6.51035,2994.1,2994.0,13.143]
[1752263142379,5.9185,2994.1,2994.0,13.143]
[1752263142876,5.3685,2994.1,2994.0,13.143]
[1752263143766,6.4785,2994.1,2994.0,13.143]
[1752263143978,6.4785,2994.1,2994.0,23.143]
[1752263143979,4.442,2994.1,2994.0,23.143]
[1752263146170,5.552,2994.1,2994.0,23.143]
[1752263148790,6.662,2994.1,2994.0,23.143]
[1752263151186,7.772,2994.1,2994.0,23.143]
[1752263153561,8.882,2994.1,2994.0,23.143]
[1752263154659,8.882,2994.1,2994.0,23.6007]
[1752263155350,8.882,2994.1,2994.0,23.143]
[1752263155955,9.992,2994.1,2994.0,23.143]
[1752263157088,9.992,2994.1,2994.0,18.001]
[1752263157386,10.4622,2994.1,2994.0,23.141]
[1752263157601,11.76951,2994.1,2994.0,13.141]
[1752263158455,14.49811,2994.1,2994.0,13.141]
[1752263158656,15.04811,2994.1,2994.0,8.001]
[1752263159099,2.335,2994.0,2993.9,0.001]
[1752263159272,4.421011,2994.0,2993.9,13.144]
[1752263161094,5.531011,2994.0,2993.9,13.144]
[1752263162424,0.55,2993.8,2993.3,0.001]
[1752263162603,1.0202,2993.9,2993.8,8.004]
[1752263162805,0.55,2993.6,2993.3,0.001]
[1752263162995,2.0998,2993.6,2993.5,8.004]
[1752263163191,2.0998,2993.5,2993.3,0.001]
[1752263163394,2.57,2993.5,2993.3,0.001]
[1752263163627,1.5498,2993.5,2993.4,5.14]
[1752263163791,1.11,2993.6,2993.4,5.14]
[1752263163987,1.11,2993.6,2993.5,10.0]
[1752263164585,1.11,2993.6,2993.5,10.4577]
[1752263164789,1.2764,2993.6,2993.5,10.82181293]
[1752263165189,1.2764,2993.6,2993.5,10.4577]
[1752263165922,2.3864,2993.6,2993.5,10.4577]
[1752263166522,2.3864,2993.6,2993.5,5.139]
[1752263166822,2.3864,2993.6,2993.5,15.139]
[1752263167190,2.3864,2993.6,2993.5,15.5967]
[1752263168228,3.4964,2993.6,2993.5,15.5967]
[1752263169400,3.4964,2993.6,2993.5,17.2038]
[1752263170900,4.6064,2993.6,2993.5,17.2038]
[1752263171105,4.6064,2993.6,2993.5,16.7461]
[1752263171300,4.6064,2993.6,2993.5,17.2038]
[1752263171713,4.6064,2993.6,2993.5,25.2078]
[1752263173102,4.6064,2993.6,2993.5,18.004]
[1752263173303,6.33923,2993.6,2993.5,13.142]
[1752263173733,5.7164,2993.6,2993.5,13.142]
[1752263173909,5.7164,2993.6,2993.5,23.142]
[1752263175234,5.7164,2993.6,2993.5,18.004]
[1752263175437,6.1866,2993.6,2993.5,23.142]
[1752263175838,7.2966,2993.6,2993.5,23.142]
[1752263176031,6.8264,2993.6,2993.5,23.142]
[1752263177137,6.8264,2993.6,2993.5,25.1902]
[1752263177332,6.8264,2993.6,2993.5,23.142]
[1752263177641,6.8264,2993.6,2993.5,10.277]
[1752263177642,21.34499046,2993.6,2993.5,10.277]
[1752263177804,20.71709046,2993.6,2993.4,0.001]
[1752263178011,11.021,2993.5,2992.8,0.001]
[1752263178221,2.1989,2992.9,2992.8,0.001]
[1752263178546,3.65413505,2992.9,2992.8,0.001]
[1752263178704,4.12513505,2992.9,2992.8,0.001]
[1752263178905,4.12513505,2992.9,2992.8,10.278]
[1752263179545,2.6699,2992.9,2992.8,10.278]
[1752263180411,1.6295,2992.8,2992.6,0.001]
[1752263180613,2.6505,2992.8,2992.6,0.001]
[1752263180859,3.7605,2992.8,2992.6,0.001]
[1752263181038,5.37189505,2992.8,2992.6,0.001]
[1752263181439,3.7605,2992.8,2992.6,0.001]
[1752263181621,3.7605,2992.8,2992.7,10.278]
[1752263181945,3.7605,2992.8,2992.7,18.284]
[1752263182360,3.2105,2992.8,2992.7,18.284]
[1752263182869,1.11,2992.8,2992.7,18.284]
[1752263183215,2.22,2992.8,2992.7,18.284]
[1752263185250,3.12305,2992.8,2992.7,18.284]
[1752263185629,3.76205,2992.8,2992.7,18.284]
[1752263185826,3.33,2992.8,2992.7,18.284]
[1752263186353,3.33,2992.8,2992.7,28.7537]
[1752263188014,4.44,2992.8,2992.7,28.7537]
[1752263188451,4.6064,2992.8,2992.7,28.7537]
[1752263189016,4.44,2992.8,2992.7,46.37952761]
[1752263189316,4.44,2992.8,2992.7,47.09592761]
[1752263189715,7.772,2993.6,2993.5,14.89927123]
[1752263189917,7.772,2993.6,2993.5,26.01108416]
[1752263190116,7.772,2993.6,2993.5,26.17748416]
[1752263190352,8.882,2993.6,2993.5,25.81337123]
[1752263191740,8.882,2993.6,2993.5,34.6418]
[1752263191932,8.882,2993.6,2993.5,34.0057]
[1752263192332,8.882,2993.6,2993.5,34.4754]
[1752263192563,8.882,2993.6,2993.5,37.81597123]
[1752263192871,9.992,2993.6,2993.5,37.81597123]
[1752263193270,9.992,2993.6,2993.5,38.06708472]
[1752263194263,9.992,2993.6,2993.5,34.72651349]
[1752263195135,11.102,2993.6,2993.5,34.72651349]
[1752263195866,11.102,2993.6,2993.5,38.06708472]
[1752263196171,11.102,2993.6,2993.5,38.43119765]
[1752263196331,11.102,2993.6,2993.5,34.43459765]
[1752263197537,12.212,2993.6,2993.5,26.06448472]
[1752263199833,13.322,2993.6,2993.5,26.06448472]
[1752263200453,13.322,2993.6,2993.5,22.25421349]
[1752263200754,13.322,2993.6,2993.5,22.72391349]
[1752263201686,13.322,2993.6,2993.5,30.22648472]
[1752263201889,13.322,2993.6,2993.5,38.23048472]
[1752263202584,14.432,2993.6,2993.5,38.23048472]
[1752263202785,14.432,2993.6,2993.5,39.14459765]
[1752263203155,14.432,2993.6,2993.5,38.22648472]
[1752263203360,14.432,2993.6,2993.5,34.06448472]
[1752263203796,14.432,2993.6,2993.5,26.06048472]
[1752263204182,14.432,2993.6,2993.5,22.71991349]
[1752263204355,14.432,2993.6,2993.5,22.25021349]
[1752263204791,14.432,2993.6,2993.5,26.06048472]
[1752263205086,15.542,2993.6,2993.5,26.06048472]
[1752263208176,16.652,2993.6,2993.5,26.06048472]
[1752263210387,16.652,2993.6,2993.5,26.61048472]
[1752263210583,17.762,2993.6,2993.5,26.61048472]
[1752263211672,17.762,2993.6,2993.5,30.77148472]
[1752263211867,17.762,2993.6,2993.5,34.41421349]
[1752263212072,17.762,2993.6,2993.5,36.19608472]
[1752263212268,17.762,2993.6,2993.5,32.85551349]
[1752263212473,17.762,2993.6,2993.5,12.41511349]
[1752263212671,17.762,2993.6,2993.5,17.55111349]
[1752263212672,20.0073,2993.6,2993.5,17.55111349]
[1752263212986,22.6475,2993.6,2993.5,17.3]
[1752263215184,22.1784,2993.6,2993.5,17.3]
[1752263215399,19.982,2993.6,2993.5,27.3]
[1752263215594,19.982,2993.6,2993.5,22.164]
[1752263215774,19.982,2993.6,2993.5,27.3]
[1752263217888,21.092,2993.6,2993.5,27.3]
[1752263220387,22.202,2993.6,2993.5,27.3]
[1752263222138,25.94554,2993.6,2993.5,22.164]
[1752263222281,26.41464,2993.6,2993.5,27.3]
[1752263222914,24.8187,2993.6,2993.5,27.3]
[1752263224105,25.2878,2993.6,2993.5,27.3]
[1752263224729,24.8187,2993.6,2993.5,22.164]
[1752263224925,24.8187,2993.6,2993.5,27.3]
[1752263225531,25.9287,2993.6,2993.5,27.3]
[1752263225821,26.3978,2993.6,2993.5,27.3]
[1752263226126,29.05422,2993.6,2993.5,27.3]
[1752263226359,29.05422,2993.6,2993.5,22.164]
[1752263226610,29.05422,2993.6,2993.5,27.3]
[1752263226811,26.3978,2993.6,2993.5,27.3]
[1752263227020,26.3978,2993.6,2993.5,22.164]
[1752263227515,26.3978,2993.6,2993.5,27.3]
[1752263227904,27.5078,2993.6,2993.5,27.3]
[1752263228295,27.5078,2993.6,2993.5,10.0]
[1752263228495,30.27522,2993.6,2993.5,10.0]
[1752263229618,30.27522,2993.6,2993.5,23.14]
[1752263230299,28.6178,2993.6,2993.5,23.14]
[1752263230700,28.1487,2993.6,2993.5,23.14]
[1752263230998,28.6178,2993.6,2993.5,23.14]
[1752263231195,28.1487,2993.6,2993.5,23.14]
[1752263232229,28.1487,2993.6,2993.5,13.14]
[1752263232436,26.642,2993.6,2993.5,23.14]
[1752263232640,26.642,2993.6,2993.5,23.5909]
[1752263232793,27.752,2993.6,2993.5,23.5909]
[1752263232994,27.752,2993.6,2993.5,26.93147123]
[1752263233236,27.752,2993.6,2993.5,28.82128416]
[1752263233536,27.752,2993.6,2993.5,40.97702169]
[1752263233869,27.752,2993.6,2993.5,41.52702169]
[1752263233996,27.752,2993.6,2993.5,41.89113462]
[1752263234201,27.752,2993.6,2993.5,41.52702169]
[1752263234928,27.752,2993.6,2993.5,41.89113462]
[1752263235339,1.11,2994.0,2993.9,3.89012492]
[1752263235543,1.11,2994.0,2993.9,32.99687662]
[1752263235715,1.11,2994.0,2993.9,33.58077538]
[1752263235899,5.55,2994.1,2994.0,13.89001336]
[1752263236101,1.11,2994.2,2994.1,15.4738018]
[1752263236300,1.11,2994.2,2994.1,26.1967018]
[1752263236530,1.11,2994.2,2994.1,26.3631018]
[1752263237954,2.22,2994.2,2994.1,26.3631018]
[1752263239031,2.22,2994.2,2994.1,25.8131018]
[1752263240023,2.22,2994.2,2994.1,38.16655226]
[1752263240224,3.33,2994.2,2994.1,38.16655226]
[1752263240425,0.002,2994.8,2994.7,4.84173264]
[1752263240654,0.002,2994.8,2994.7,20.00912496]
[1752263240855,0.002,2994.8,2994.7,20.61003264]
[1752263241245,0.002,2994.8,2994.7,20.85804811]
[1752263241643,0.002,2994.8,2994.7,10.41441547]
[1752263241845,0.002,2994.8,2994.7,31.04864811]
[1752263242045,0.002,2994.8,2994.7,31.51654811]
[1752263242241,0.002,2994.8,2994.7,31.68264103]
[1752263242858,0.002,2994.8,2994.7,26.54864103]
[1752263243032,1.112,2994.8,2994.7,31.68264103]
[1752263243634,1.112,2994.8,2994.7,26.08074103]
[1752263243903,1.112,2994.8,2994.7,31.21474103]
[1752263244171,1.112,2994.8,2994.7,31.68264103]
[1752263245279,1.112,2994.8,2994.7,31.21474103]
[1752263245487,2.222,2994.8,2994.7,31.21474103]
[1752263245781,2.222,2994.8,2994.7,31.68264103]
[1752263247869,3.332,2994.8,2994.7,31.68264103]
[1752263250368,4.442,2994.8,2994.7,31.68264103]
[1752263250729,4.442,2994.8,2994.7,31.21474103]
[1752263251562,4.442,2994.8,2994.7,31.68264103]
[1752263252079,4.442,2994.8,2994.7,22.57541547]
[1752263252385,6.25828,2994.8,2994.7,27.54101547]
[1752263252854,7.36828,2994.8,2994.7,27.54101547]
[1752263253377,5.9922,2994.8,2994.7,27.54101547]
[1752263253684,5.552,2994.8,2994.7,27.54101547]
[1752263253840,5.552,2994.8,2994.7,30.88024811]
[1752263255156,6.662,2994.8,2994.7,30.88024811]
[1752263256520,6.662,2994.8,2994.7,32.30044811]
[1752263256682,6.662,2994.8,2994.7,32.76834811]
[1752263257553,7.772,2994.8,2994.7,32.76834811]
[1752263257758,7.772,2994.8,2994.7,19.66921547]
[1752263258080,7.772,2994.8,2994.7,13.38101547]
[1752263258378,7.772,2994.8,2994.7,26.72024811]
[1752263260572,8.882,2994.8,2994.7,23.38101547]
[1752263260898,10.72582873,2994.8,2994.7,18.24901547]
[1752263261199,10.72582873,2994.8,2994.7,23.38101547]
[1752263262585,9.3222,2994.8,2994.7,23.38101547]
[1752263262797,10.8196,2994.8,2994.7,23.38101547]
[1752263262998,11.9296,2994.8,2994.7,23.38101547]
[1752263265699,13.0396,2994.8,2994.7,23.38101547]
[1752263266002,12.5994,2994.8,2994.7,23.38101547]
[1752263266467,13.0396,2994.8,2994.7,23.38101547]
[1752263267299,12.5994,2994.8,2994.7,23.38101547]
[1752263267605,11.102,2994.8,2994.7,23.38101547]
[1752263267927,15.7278,2994.8,2994.7,10.264]
[1752263268081,0.55,2994.7,2994.3,4.16]
[1752263268286,0.55,2994.7,2994.4,8.0]
[1752263268287,0.55,2994.5,2994.4,8.0]
[1752263268482,2.066,2994.5,2994.4,8.0]
[1752263268821,2.7397,2994.5,2994.4,8.0]
[1752263269299,2.7397,2994.5,2994.4,18.279]
[1752263270911,3.8497,2994.5,2994.4,18.279]
[1752263273431,4.9597,2994.5,2994.4,18.279]
[1752263273611,4.7531,2994.5,2994.4,18.279]
[1752263273816,4.2031,2994.5,2994.4,18.279]
[1752263274907,4.7531,2994.5,2994.4,18.279]
[1752263275926,5.8631,2994.5,2994.4,18.279]
[1752263279027,6.9731,2994.5,2994.4,18.279]
[1752263280451,4.44,2994.5,2994.4,28.279]
[1752263280951,4.44,2994.5,2994.4,28.7416]
[1752263281100,4.44,2994.5,2994.4,28.908]
[1752263281638,5.55,2994.5,2994.4,28.4454]
[1752263284031,6.66,2994.5,2994.4,28.4454]
[1752263285214,6.66,2994.5,2994.4,32.24756719]
[1752263285437,6.66,2994.5,2994.4,33.69356719]
[1752263286738,7.77,2994.5,2994.4,33.69356719]
[1752263289238,8.88,2994.5,2994.4,33.69356719]
[1752263290238,8.88,2994.5,2994.4,25.69356719]
[1752263291742,9.99,2994.5,2994.4,37.85456719]